bitfinex/quotes_BTCUSD_20230101
["timestamp","ask_amount","ask_price","bid_price","bid_amount"]
[1672531200297,0.00970902,16569.0,16567.0,0.619418]
[1672531200613,0.89171569,16568.0,16566.0,1.6947363]
[1672531200816,0.89171569,16568.0,16567.0,1.319418]
[1672531201094,0.89171569,16568.0,16567.0,0.7]
[1672531201349,0.89171569,16568.0,16567.0,0.84546125]
[1672531201615,1.78343454,16568.0,16567.0,0.84546125]
[1672531201874,1.78343454,16568.0,16567.0,1.40135748]
[1672531202114,1.78343454,16568.0,16567.0,1.48135748]
[1672531202359,1.78072176,16568.0,16567.0,1.48135748]
[1672531202616,0.88900291,16568.0,16567.0,1.48135748]
[1672531202886,0.88900291,16568.0,16567.0,1.48458705]
[1672531203123,0.88827366,16568.0,16567.0,1.58308317]
[1672531204608,0.88827366,16568.0,16567.0,1.43762192]
[1672531204853,0.88827366,16568.0,16567.0,1.43768295]
[1672531205104,0.88827366,16568.0,16567.0,1.43762192]
[1672531205354,0.88816803,16568.0,16567.0,1.43762192]
[1672531205845,0.88816803,16568.0,16567.0,1.43768295]
[1672531206099,0.88694803,16568.0,16567.0,1.43768295]
[1672531206335,0.88633803,16568.0,16567.0,1.58145125]
[1672531206594,0.88572803,16568.0,16567.0,1.43762192]
[1672531206854,0.88572803,16568.0,16567.0,1.43768295]
[1672531207118,0.88450803,16568.0,16567.0,1.43768295]
[1672531207615,0.88389803,16568.0,16567.0,1.43768295]
[1672531207874,0.88389803,16568.0,16567.0,1.62441117]
[1672531207875,0.88328803,16568.0,16567.0,1.62441117]
[1672531208118,0.88267803,16568.0,16567.0,1.43768295]
[1672531208885,0.89446344,16568.0,16567.0,0.88172569]
[1672531209132,1.78618229,16568.0,16567.0,0.88172569]
[1672531210160,2.69468229,16568.0,16567.0,0.18172569]
[1672531212242,1.80296344,16568.0,16567.0,0.18172569]
[1672531212738,2.69389394,16568.0,16567.0,0.18172569]
[1672531213234,2.69388962,16568.0,16567.0,0.18172569]
[1672531213721,2.10296344,16568.0,16567.0,0.18172569]
[1672531214691,1.80296344,16568.0,16567.0,0.18172569]
[1672531216691,1.80296344,16568.0,16567.0,0.10172569]
[1672531216938,1.80296344,16568.0,16567.0,0.2527787]
[1672531217414,2.69389184,16568.0,16567.0,0.2527787]
[1672531218681,1.79389184,16568.0,16567.0,0.2527787]
[1672531219175,1.79389184,16568.0,16567.0,0.18172569]
[1672531220467,0.90296344,16568.0,16567.0,0.18172569]
[1672531222495,0.90230344,16568.0,16567.0,0.18172569]
[1672531227735,0.90230344,16568.0,16567.0,0.18178686]
[1672531227998,0.90230344,16568.0,16567.0,0.18172569]
[1672531232776,0.90230344,16568.0,16567.0,0.2527787]
[1672531234254,0.90230344,16568.0,16567.0,0.18172569]
[1672531235000,0.90230344,16568.0,16567.0,0.18178686]
[1672531235259,0.90230344,16568.0,16567.0,0.18172569]
[1672531237548,0.90230344,16568.0,16567.0,0.18178686]
[1672531238302,0.90230344,16568.0,16567.0,0.18172569]
[1672531238555,0.90230344,16568.0,16567.0,0.29573863]
[1672531239039,0.90230344,16568.0,16567.0,0.18172569]
[1672531239801,0.90230344,16568.0,16567.0,0.18178686]
[1672531240048,0.90230344,16568.0,16567.0,0.18172569]
[1672531240807,0.90230344,16568.0,16567.0,0.18178686]
[1672531241050,0.90230344,16568.0,16567.0,0.18172569]
[1672531246512,0.90230344,16568.0,16567.0,0.29569951]
[1672531246759,0.90230344,16568.0,16567.0,0.18168657]
[1672531247015,0.90230344,16568.0,16567.0,0.18162553]
[1672531247510,0.89051803,16568.0,16567.0,0.76007716]
[1672531248500,0.89051803,16568.0,16567.0,0.76001612]
[1672531248763,0.89051803,16568.0,16567.0,0.87897766]
[1672531249008,0.89051803,16568.0,16567.0,1.11903768]
[1672531249290,0.89051803,16568.0,16567.0,1.57897766]
[1672531249545,0.89051803,16568.0,16567.0,2.62799492]
[1672531249546,0.88201803,16568.0,16567.0,2.62799492]
[1672531249797,1.77482507,16568.0,16567.0,2.19839566]
[1672531250799,0.88201803,16568.0,16567.0,2.19839566]
[1672531252039,0.88201803,16568.0,16567.0,2.1984567]
[1672531252276,1.77482507,16568.0,16567.0,2.1984567]
[1672531252514,0.88201803,16568.0,16567.0,2.1984567]
[1672531254263,0.88201803,16568.0,16567.0,2.19839566]
[1672531254511,1.77482507,16568.0,16567.0,1.46001612]
[1672531255253,0.88201803,16568.0,16567.0,1.46007716]
[1672531256984,0.88201803,16568.0,16567.0,2.07949516]
[1672531259785,0.88201803,16568.0,16567.0,1.46007716]
[1672531260534,0.88201803,16568.0,16567.0,1.46001612]
[1672531262243,0.88201803,16568.0,16567.0,1.60601773]
[1672531263239,0.88201803,16568.0,16567.0,1.46001612]
[1672531263975,0.88201803,16568.0,16567.0,1.46007716]
[1672531266569,0.88201803,16568.0,16567.0,1.46001612]
[1672531266811,0.88201803,16568.0,16567.0,1.46007716]
[1672531269851,0.88201803,16568.0,16567.0,1.45998786]
[1672531270080,0.88201803,16568.0,16567.0,1.60598665]
[1672531271301,0.88201803,16568.0,16567.0,0.90598665]
[1672531272054,0.88201803,16568.0,16567.0,1.60598665]
[1672531275289,0.88201803,16568.0,16567.0,1.45998786]
[1672531278043,0.88201803,16568.0,16567.0,0.75998786]
[1672531278805,0.88201803,16568.0,16567.0,1.45998786]
[1672531282674,0.88201803,16568.0,16567.0,1.45992682]
[1672531285637,0.89051803,16568.0,16567.0,1.45992682]
[1672531285895,1.78332507,16568.0,16567.0,1.45992682]
[1672531286392,1.78332507,16568.0,16567.0,1.45998786]
[1672531286630,1.78332507,16568.0,16567.0,1.45992682]
[1672531287879,1.78332507,16568.0,16567.0,0.88153623]
[1672531288876,0.89051803,16568.0,16567.0,0.88153623]
[1672531289617,0.89051803,16568.0,16567.0,0.88288636]
[1672531289864,0.89051803,16568.0,16567.0,0.8829474]
[1672531290105,0.89051803,16568.0,16567.0,0.88288636]
[1672531290594,1.78282573,16568.0,16567.0,0.88288636]
[1672531291086,0.89051803,16568.0,16567.0,0.88288636]
[1672531292667,1.78266704,16568.0,16567.0,0.88288636]
[1672531293614,1.78266704,16568.0,16567.0,0.88522674]
[1672531295899,0.89051803,16568.0,16567.0,0.88522674]
[1672531296150,1.78253213,16568.0,16567.0,0.88522674]
[1672531296403,0.9012155,16568.0,16567.0,0.88522674]
[1672531296661,0.9012155,16568.0,16567.0,0.88710318]
[1672531297332,1.33081476,16568.0,16567.0,0.88710318]
[1672531297823,1.63081476,16568.0,16567.0,0.88710318]
[1672531298068,2.071156,16568.0,16567.0,0.18710318]
[1672531300073,1.64155674,16568.0,16567.0,0.18710318]
[1672531300287,0.9012155,16568.0,16567.0,0.18710318]
[1672531300768,1.2012155,16568.0,16567.0,0.18952172]
[1672531301020,0.9012155,16568.0,16567.0,0.18952172]
[1672531301804,0.7014255,16568.0,16567.0,0.18952172]
[1672531302550,1.0014255,16568.0,16567.0,0.18952172]
[1672531303299,1.43087504,16568.0,16567.0,0.18952172]
[1672531303541,1.0014255,16568.0,16567.0,0.18952172]
[1672531303794,1.43087504,16568.0,16567.0,0.18952172]
[1672531305290,1.0014255,16568.0,16567.0,0.18952172]
[1672531307812,1.0014255,16568.0,16567.0,0.18958289]
[1672531308055,1.0014255,16568.0,16567.0,0.18952172]
[1672531309050,0.7014255,16568.0,16567.0,0.18952172]
[1672531310783,0.7014255,16568.0,16567.0,0.19240688]
[1672531313475,1.59235888,16568.0,16567.0,0.19240688]
[1672531314301,1.59249122,16568.0,16567.0,0.19240688]
[1672531314550,1.5924795,16568.0,16567.0,0.19240688]
[1672531318152,0.7014255,16568.0,16567.0,0.19240688]
[1672531319922,1.0014255,16568.0,16567.0,0.19240688]
[1672531320403,0.7014255,16568.0,16567.0,0.19240688]
[1672531324809,0.7014255,16568.0,16567.0,0.19229349]
[1672531325587,1.05177835,16568.0,16567.0,0.19229349]
[1672531325884,0.7014255,16568.0,16567.0,0.19229349]
[1672531326639,1.43087504,16568.0,16567.0,0.19229349]
[1672531326889,1.0014255,16568.0,16567.0,0.19229349]
[1672531331404,1.0014255,16568.0,16567.0,0.19235453]
[1672531331651,0.7014255,16568.0,16567.0,0.19235453]
[1672531332147,0.7014255,16568.0,16567.0,0.19229349]
[1672531332640,0.69072803,16568.0,16567.0,0.25833113]
[1672531332898,0.69072803,16568.0,16567.0,0.19235453]
[1672531333145,0.69072803,16568.0,16567.0,0.89235453]
[1672531333394,0.69072803,16568.0,16567.0,1.33431813]
[1672531333643,0.69072803,16568.0,16567.0,1.33437917]
[1672531333909,0.69072803,16568.0,16567.0,1.33431813]
[1672531334910,0.69072803,16568.0,16567.0,1.33437917]
[1672531335217,0.69072803,16568.0,16567.0,1.33431813]
[1672531342748,0.69072803,16568.0,16567.0,0.89229349]
[1672531342986,0.69072803,16568.0,16567.0,0.19229349]
[1672531343525,0.69072803,16568.0,16567.0,0.89229349]
[1672531344518,0.89590802,16568.0,16567.0,0.89229349]
[1672531344795,0.89590802,16568.0,16567.0,0.89217687]
[1672531345031,0.69072803,16568.0,16567.0,0.89217687]
[1672531346262,0.70041808,16568.0,16567.0,0.89217687]
[1672531346500,1.00041808,16568.0,16567.0,0.19217687]
[1672531347992,2.41075488,16568.0,16567.0,0.19217687]
[1672531352026,1.98130534,16568.0,16567.0,0.19217687]
[1672531352505,2.36170424,16568.0,16567.0,0.19217687]
[1672531352748,1.38081698,16568.0,16567.0,0.19217687]
[1672531355001,1.81026652,16568.0,16567.0,0.19217687]
[1672531355754,2.79115378,16568.0,16567.0,0.19217687]
[1672531356011,3.28146373,16568.0,16567.0,0.19217687]
[1672531356274,2.33289214,16568.0,16567.0,0.10401155]
[1672531357262,2.33289214,16568.0,16567.0,0.02401155]
[1672531357509,2.34189214,16568.0,16567.0,0.03401155]
[1672531357763,2.34189214,16568.0,16567.0,0.01]
[1672531358017,2.34189214,16568.0,16563.0,0.65420234]
[1672531358018,2.33289214,16568.0,16563.0,0.70302116]
[1672531358304,1.5320437,16568.0,16567.0,0.01]
[1672531358563,2.4320437,16568.0,16567.0,0.01]
[1672531358810,2.86020354,16568.0,16567.0,0.01]
[1672531359547,2.85120354,16568.0,16563.0,0.24896882]
[1672531359791,2.85120354,16568.0,16563.0,0.25896882]
[1672531359792,1.71748851,16567.0,16563.0,0.25896882]
[1672531360050,0.89166748,16564.0,16563.0,0.24896882]
[1672531360337,1.20016748,16564.0,16563.0,0.24896882]
[1672531360549,1.20016748,16564.0,16563.0,0.20015]
[1672531360792,1.20016748,16564.0,16563.0,0.2]
[1672531361048,1.20016748,16564.0,16563.0,0.21006118]
[1672531361292,1.02018423,16564.0,16563.0,0.2]
[1672531361537,1.02018423,16564.0,16563.0,0.201]
[1672531362526,1.02018423,16564.0,16563.0,0.2]
[1672531362779,1.02018423,16564.0,16563.0,0.282]
[1672531363022,1.02018423,16564.0,16563.0,0.2]
[1672531363267,1.02018423,16564.0,16563.0,0.201]
[1672531363506,1.02018423,16564.0,16563.0,0.2]
[1672531363747,1.02018423,16564.0,16563.0,0.282]
[1672531364748,1.02018423,16564.0,16563.0,0.29297417]
[1672531365246,1.02018423,16564.0,16563.0,0.99297417]
[1672531367517,0.12851675,16564.0,16563.0,0.99297417]
[1672531367759,1.02018423,16564.0,16563.0,0.99297417]
[1672531368984,0.12851675,16564.0,16563.0,0.99297417]
[1672531370276,0.12851675,16564.0,16563.0,0.9930353]
[1672531370769,0.12851675,16564.0,16563.0,0.99297417]
[1672531371275,0.12851675,16564.0,16563.0,0.29297417]
[1672531371527,0.0085,16564.0,16563.0,0.29297417]
[1672531371753,0.0085,16564.0,16563.0,0.2930353]
[1672531371999,0.0085,16564.0,16563.0,0.99297417]
[1672531372746,0.0085,16564.0,16563.0,0.9930353]
[1672531373228,0.0085,16564.0,16563.0,0.99297417]
[1672531373721,0.09949897,16564.0,16563.0,0.99297417]
[1672531378276,0.0085,16564.0,16563.0,0.99297417]
[1672531380265,0.01969527,16564.0,16563.0,0.99297417]
[1672531380539,0.91136275,16564.0,16563.0,0.99297417]
[1672531381030,0.91136275,16564.0,16563.0,0.99290247]
[1672531382264,0.91136275,16564.0,16563.0,0.29290247]
[1672531383018,1.04531501,16564.0,16563.0,0.29290247]
[1672531383511,0.91136275,16564.0,16563.0,0.29290247]
[1672531385722,0.01969527,16564.0,16563.0,0.29290247]
[1672531385974,0.91158991,16564.0,16563.0,0.29290247]
[1672531393582,0.01969527,16564.0,16563.0,0.29290247]
[1672531394072,0.01969527,16564.0,16563.0,0.2929636]
[1672531394802,0.01969527,16564.0,16563.0,0.29290247]
[1672531395544,0.01969527,16564.0,16563.0,0.2929636]
[1672531395785,0.01969527,16564.0,16563.0,0.29290247]
[1672531396774,0.01969527,16564.0,16563.0,0.2819283]
[1672531397310,0.01969527,16564.0,16563.0,0.28198943]
[1672531397553,0.01969527,16564.0,16563.0,0.2819283]
[1672531398320,0.01969527,16564.0,16563.0,0.28198943]
[1672531398810,0.01969527,16564.0,16563.0,0.2819283]
[1672531399308,0.01969527,16564.0,16563.0,0.28198943]
[1672531399554,0.01969527,16564.0,16563.0,0.2819283]
[1672531400446,0.01969527,16564.0,16563.0,0.9819283]
[1672531401418,0.01969527,16564.0,16563.0,0.98198943]
[1672531401657,0.01969527,16564.0,16563.0,0.9819283]
[1672531402941,0.01969527,16564.0,16563.0,0.2819283]
[1672531404348,0.09448078,16564.0,16563.0,0.2819283]
[1672531404910,0.01969527,16564.0,16563.0,0.2819283]
[1672531405411,0.01969527,16564.0,16563.0,0.28198943]
[1672531405903,0.01969527,16564.0,16563.0,0.28181631]
[1672531407242,0.01969527,16564.0,16563.0,0.28187744]
[1672531407482,0.01969527,16564.0,16563.0,0.28181631]
[1672531409675,0.09448078,16564.0,16563.0,0.28181631]
[1672531411414,0.09448078,16564.0,16563.0,0.082]
[1672531413655,0.52264062,16564.0,16563.0,0.082]
[1672531413898,0.82264062,16564.0,16563.0,0.082]
[1672531417107,1.80346929,16564.0,16563.0,0.082]
[1672531417354,1.37530945,16564.0,16563.0,0.082]
[1672531417596,0.82264062,16564.0,16563.0,0.082]
[1672531419834,0.39448078,16564.0,16563.0,0.082]
[1672531420587,2.00079125,16564.0,16563.0,0.082]
[1672531420845,2.22649467,16564.0,16563.0,0.04476984]
[1672531421095,0.01721853,16564.0,16563.0,0.04476984]
[1672531421348,0.99902315,16564.0,16561.0,0.45364752]
[1672531421585,0.99902315,16564.0,16563.0,0.009]
[1672531421586,1.26052889,16564.0,16563.0,0.009]
[1672531421825,0.99902315,16564.0,16561.0,0.45364752]
[1672531422062,0.0085,16563.0,16561.0,0.45364752]
[1672531422830,0.0085,16563.0,16562.0,0.08411794]
[1672531423325,0.0535,16563.0,16562.0,0.08411794]
[1672531423817,0.0085,16563.0,16562.0,0.08411794]
[1672531424057,0.0445,16563.0,16562.0,0.08411794]
[1672531424560,0.08999567,16563.0,16562.0,0.08411794]
[1672531426058,1.73216594,16563.0,16562.0,0.08411794]
[1672531426318,1.8146602,16563.0,16562.0,0.08411794]
[1672531426837,1.8146602,16563.0,16560.0,0.04769599]
[1672531427078,0.3,16562.0,16560.0,0.54049498]
[1672531427318,0.0085,16561.0,16560.0,0.54049498]
[1672531427808,0.0085,16561.0,16560.0,0.49279899]
[1672531428555,0.0085,16561.0,16559.0,0.00452939]
[1672531428808,0.89190036,16560.0,16559.0,0.60111441]
[1672531429066,0.90040036,16560.0,16559.0,0.60111441]
[1672531429566,0.90040036,16560.0,16559.0,0.70611441]
[1672531429816,0.90040036,16560.0,16559.0,0.60111441]
[1672531430063,0.90340036,16560.0,16559.0,0.70511441]
[1672531430558,0.99483875,16560.0,16559.0,0.70511441]
[1672531431845,0.99483875,16560.0,16559.0,0.78926223]
[1672531434351,0.90340036,16560.0,16559.0,0.18267721]
[1672531436099,0.0115,16560.0,16559.0,0.18267721]
[1672531437125,0.0115,16560.0,16559.0,0.60913412]
[1672531437379,0.0115,16560.0,16559.0,0.17851008]
[1672531437631,0.0115,16560.0,16559.0,0.17844893]
[1672531438114,0.0115,16560.0,16559.0,0.87844893]
[1672531440863,0.10293839,16560.0,16559.0,0.87844893]
[1672531441348,0.0115,16560.0,16559.0,0.87844893]
[1672531443596,0.0115,16560.0,16559.0,1.30490584]
[1672531443854,0.003,16560.0,16559.0,1.81977244]
[1672531444095,0.0115,16560.0,16559.0,2.43919044]
[1672531445095,0.003,16560.0,16559.0,2.43919044]
[1672531445551,0.003,16560.0,16559.0,1.39331553]
[1672531445838,0.003,16560.0,16559.0,1.81977244]
[1672531446095,0.003,16560.0,16559.0,1.39337668]
[1672531446337,0.003,16560.0,16559.0,1.81977244]
[1672531446585,0.003,16560.0,16559.0,1.39331553]
[1672531447322,0.003,16560.0,16559.0,1.81971129]
[1672531447806,0.003,16560.0,16559.0,1.39337668]
[1672531448067,0.003,16560.0,16559.0,1.81971129]
[1672531448573,0.003,16560.0,16559.0,1.39331553]
[1672531449063,0.003,16560.0,16559.0,1.81977244]
[1672531449580,0.003,16560.0,16559.0,1.39331553]
[1672531450340,0.003,16560.0,16559.0,1.39337668]
[1672531450835,0.003,16560.0,16559.0,1.39331553]
[1672531451341,0.003,16560.0,16559.0,0.87844893]
[1672531451342,0.99537001,16560.0,16559.0,0.87844893]
[1672531451606,1.00387001,16560.0,16559.0,0.87844893]
[1672531452855,0.91254087,16560.0,16559.0,0.87844893]
[1672531456052,0.02064051,16560.0,16559.0,0.87844893]
[1672531456305,0.91299083,16560.0,16559.0,0.87844893]
[1672531456574,0.02064051,16560.0,16559.0,0.87844893]
[1672531457353,0.91299059,16560.0,16559.0,0.87844893]
[1672531457610,1.00428965,16560.0,16559.0,0.87844893]
[1672531458075,0.11193957,16560.0,16559.0,0.87844893]
[1672531458334,0.02064051,16560.0,16559.0,0.87844893]
[1672531459809,0.02064051,16560.0,16559.0,0.87835035]
[1672531460064,0.91318658,16560.0,16559.0,1.30474611]
[1672531460273,0.91318658,16560.0,16559.0,0.87835035]
[1672531464336,0.91318658,16560.0,16559.0,0.17835035]
[1672531465106,1.00450524,16560.0,16559.0,0.17835035]
[1672531465361,1.00450524,16560.0,16559.0,0.87835035]
[1672531467836,0.11195917,16560.0,16559.0,0.87835035]
[1672531468084,0.02064051,16560.0,16559.0,0.87835035]
[1672531469331,0.01764051,16560.0,16559.0,0.78414782]
[1672531469576,0.01764051,16560.0,16559.0,0.78614782]
[1672531469577,0.05764051,16560.0,16559.0,0.78614782]
[1672531470080,0.05764051,16560.0,16559.0,0.08614782]
[1672531471571,0.05764051,16560.0,16559.0,0.78614782]
[1672531472086,0.49390735,16560.0,16559.0,0.78614782]
[1672531472341,2.21709407,16560.0,16559.0,0.78614782]
[1672531472596,3.19889869,16560.0,16559.0,0.78614782]
[1672531472836,3.0840772,16560.0,16559.0,0.78614782]
[1672531473074,2.86657146,16560.0,16559.0,0.08614782]
[1672531473329,2.86640314,16560.0,16559.0,0.08614782]
[1672531473580,2.87594866,16560.0,16559.0,0.08614782]
[1672531474320,2.86640314,16560.0,16559.0,0.08614782]
[1672531474818,1.34116464,16560.0,16559.0,0.08614782]
[1672531475070,0.35952834,16560.0,16559.0,0.08614782]
[1672531475807,0.85952834,16560.0,16559.0,0.08614782]
[1672531476609,1.84116464,16560.0,16559.0,0.08614782]
[1672531476870,2.15377886,16560.0,16559.0,0.08614782]
[1672531477107,2.45888459,16560.0,16559.0,0.04731677]
[1672531478119,1.47752045,16560.0,16559.0,0.04731677]
[1672531478869,2.17752045,16560.0,16559.0,0.04731677]
[1672531479355,3.15802608,16560.0,16559.0,0.04731677]
[1672531480611,2.14352255,16560.0,16559.0,0.04731677]
[1672531481104,2.14352255,16560.0,16559.0,0.02607294]
[1672531481369,1.83814466,16560.0,16559.0,0.02607294]
[1672531481881,0.85763903,16560.0,16559.0,0.02607294]
[1672531483166,2.15982613,16560.0,16559.0,0.02607294]
[1672531483434,1.1793205,16560.0,16559.0,0.02607294]
[1672531483701,1.55530311,16560.0,16559.0,0.02607294]
[1672531484214,1.23362164,16560.0,16559.0,0.02607294]
[1672531484476,0.05763903,16560.0,16559.0,0.02607294]
[1672531487199,0.93094264,16560.0,16559.0,0.60179927]
[1672531488196,0.93094264,16560.0,16559.0,0.60302047]
[1672531488732,0.93944264,16560.0,16559.0,0.60302047]
[1672531488973,0.93944264,16560.0,16559.0,0.60179927]
[1672531489474,0.04,16560.0,16559.0,1.03920204]
[1672531489967,0.04,16560.0,16559.0,1.65862004]
[1672531490215,0.04,16560.0,16559.0,1.9339636]
[1672531490712,0.0485,16560.0,16559.0,1.9339636]
[1672531491223,0.0485,16560.0,16559.0,1.9319636]
[1672531491224,0.0085,16560.0,16559.0,1.9319636]
[1672531491742,0.0085,16561.0,16559.0,1.9319636]
[1672531491985,0.0085,16561.0,16560.0,1.75900569]
[1672531492245,0.0085,16561.0,16560.0,2.45906673]
[1672531492499,0.0085,16561.0,16560.0,1.83964873]
[1672531492733,0.10005505,16561.0,16560.0,1.83958769]
[1672531492971,0.90209153,16561.0,16560.0,1.83958769]
[1672531493222,0.00914889,16561.0,16560.0,1.83964873]
[1672531493998,0.00914889,16561.0,16560.0,1.88264873]
[1672531493999,0.01114889,16561.0,16560.0,1.88264873]
[1672531495732,0.01114889,16561.0,16560.0,1.88258769]
[1672531498691,0.01114889,16561.0,16560.0,2.50200569]
[1672531500429,0.01114889,16561.0,16560.0,1.88258769]
[1672531500711,0.01114889,16561.0,16560.0,1.18258769]
[1672531501745,0.01114889,16561.0,16560.0,2.30724413]
[1672531502020,0.01114889,16561.0,16560.0,2.92666213]
[1672531502740,0.01114889,16561.0,16560.0,2.92655515]
[1672531505286,0.00264889,16561.0,16560.0,2.92655515]
[1672531507324,0.00264889,16561.0,16560.0,2.50189871]
[1672531507575,0.00264889,16561.0,16560.0,1.88248071]
[1672531508573,0.00264889,16561.0,16560.0,2.30713715]
[1672531509529,0.00264889,16561.0,16560.0,1.88248071]
[1672531516089,0.00264889,16561.0,16560.0,2.30713715]
[1672531516346,0.00264889,16561.0,16560.0,1.88248071]
[1672531520330,0.00264889,16561.0,16560.0,2.30713715]
[1672531521577,0.00264889,16561.0,16560.0,1.88248071]
[1672531522058,0.00264889,16561.0,16560.0,2.30713715]
[1672531522304,0.00264889,16561.0,16560.0,2.92655515]
[1672531522799,0.00264889,16561.0,16560.0,2.30713715]
[1672531523045,0.00264889,16561.0,16560.0,2.30704919]
[1672531525323,0.89359153,16561.0,16560.0,2.30704919]
[1672531525558,0.90209153,16561.0,16560.0,2.30704919]
[1672531526554,0.90209153,16561.0,16560.0,2.30716537]
[1672531528605,0.90209153,16561.0,16560.0,2.5932392]
[1672531528850,0.90209153,16561.0,16560.0,2.30716537]
[1672531534489,0.90209153,16561.0,16560.0,1.60716537]
[1672531535130,0.90209153,16561.0,16560.0,1.55716537]
[1672531535593,0.90209153,16561.0,16560.0,2.25716537]
[1672531536515,0.90209153,16561.0,16560.0,1.83239275]
[1672531539893,0.90209153,16561.0,16560.0,1.83250893]
[1672531540625,0.90209153,16561.0,16560.0,1.83239275]
[1672531540852,0.01114889,16561.0,16560.0,1.83239275]
[1672531541070,0.01114889,16561.0,16560.0,1.83250893]
[1672531541291,0.90408284,16561.0,16560.0,1.83250893]
[1672531541972,0.90408232,16561.0,16560.0,1.83250893]
[1672531543255,0.90410199,16561.0,16560.0,1.83250893]
[1672531544406,0.90410199,16561.0,16560.0,2.25554615]
[1672531546166,0.90410199,16561.0,16560.0,2.20554615]
[1672531547148,0.90410199,16561.0,16560.0,1.78239275]
[1672531548925,0.90410199,16561.0,16560.0,2.20381881]
[1672531550665,0.90410199,16561.0,16560.0,2.20393499]
[1672531551475,0.90410199,16561.0,16560.0,1.50393499]
[1672531552407,0.01114889,16561.0,16560.0,1.50393499]
[1672531552635,0.89560199,16561.0,16560.0,2.20393499]
[1672531552864,0.90410199,16561.0,16560.0,2.20393499]
[1672531553331,0.90410199,16561.0,16560.0,1.78250893]
[1672531555013,0.90410199,16561.0,16560.0,2.20393499]
[1672531558483,0.90410199,16561.0,16560.0,1.50393499]
[1672531559480,0.01114889,16561.0,16560.0,1.87009809]
[1672531559720,0.00264889,16561.0,16560.0,2.45847874]
[1672531559971,0.00264889,16561.0,16560.0,3.07789674]
[1672531560713,0.00264889,16561.0,16560.0,2.45847874]
[1672531561211,0.00264889,16561.0,16560.0,2.25272795]
[1672531567669,0.00264889,16561.0,16560.0,2.87214595]
[1672531568194,0.00264889,16561.0,16560.0,2.25272795]
[1672531568450,0.00264889,16561.0,16560.0,2.25263618]
[1672531569669,0.00264889,16561.0,16560.0,1.66425553]
[1672531569930,0.00264889,16561.0,16560.0,2.52000377]
[1672531570185,0.00264889,16561.0,16560.0,2.91763892]
[1672531571445,0.00264889,16561.0,16560.0,2.4041794]
[1672531571939,0.61455861,16561.0,16560.0,2.4041794]
[1672531572187,0.00264889,16561.0,16560.0,1.7847614]
[1672531572436,0.61454597,16561.0,16560.0,2.4041794]
[1672531572697,0.00264889,16561.0,16560.0,1.7847614]
[1672531573197,0.61454539,16561.0,16560.0,2.01618754]
[1672531573446,0.61454539,16561.0,16560.0,1.7847614]
[1672531577426,0.61454539,16561.0,16560.0,2.35570568]
[1672531577669,0.61454539,16561.0,16560.0,1.7847614]
[1672531580399,0.61454539,16561.0,16560.0,2.26870959]
[1672531580653,0.61454539,16561.0,16560.0,1.7847614]
[1672531581137,0.61454539,16561.0,16560.0,2.07977754]
[1672531581634,0.00264889,16561.0,16560.0,2.07977754]
[1672531581889,0.61454539,16561.0,16560.0,2.07977754]
[1672531582156,0.61454539,16561.0,16560.0,2.57664751]
[1672531582404,0.61454539,16561.0,16560.0,3.19606551]
[1672531583427,0.00264889,16561.0,16560.0,2.69919554]
[1672531585157,0.00264889,16561.0,16560.0,1.99919554]
[1672531585399,0.00264889,16561.0,16560.0,1.37977754]
[1672531585649,0.54606002,16561.0,16560.0,2.07977754]
[1672531585909,0.54606002,16561.0,16560.0,2.69919554]
[1672531586687,0.54606002,16561.0,16560.0,2.99919554]
[1672531587409,0.54606002,16561.0,16560.0,3.62227152]
[1672531587668,0.54606002,16561.0,16560.0,2.69919554]
[1672531589666,0.54606002,16561.0,16560.0,3.24275991]
[1672531590199,0.00264889,16561.0,16560.0,3.24275991]
[1672531590952,0.22015463,16561.0,16560.0,2.52620153]
[1672531591187,0.00264889,16561.0,16560.0,1.90678353]
[1672531591707,0.00264889,16561.0,16560.0,1.9066954]
[1672531594217,0.00264889,16561.0,16560.0,1.36313103]
[1672531594218,0.01114889,16561.0,16560.0,1.36313103]
[1672531594972,0.02107362,16561.0,16560.0,1.36313103]
[1672531596919,0.11247629,16561.0,16560.0,1.36313103]
[1672531597711,1.00542939,16561.0,16560.0,1.36313103]
[1672531597950,0.01114889,16561.0,16560.0,1.36313103]
[1672531599427,0.00264889,16561.0,16560.0,1.36313103]
[1672531599666,0.01114889,16561.0,16560.0,1.36313103]
[1672531599906,0.00264889,16561.0,16560.0,1.36313103]
[1672531600150,0.01114889,16561.0,16560.0,1.36313103]
[1672531600392,0.00264889,16561.0,16560.0,1.36313103]
[1672531600632,0.01114889,16561.0,16560.0,1.36313103]
[1672531601185,0.00264889,16561.0,16560.0,1.36313103]
[1672531602821,0.00264889,16561.0,16560.0,1.93303852]
[1672531605036,0.00614889,16562.0,16560.0,2.15833866]
[1672531605278,0.00679778,16562.0,16560.0,2.15833866]
[1672531605522,0.00614889,16562.0,16561.0,0.46185419]
[1672531605762,0.00614889,16562.0,16561.0,1.16185419]
[1672531606499,0.04514889,16562.0,16561.0,1.16385419]
[1672531607265,0.00614889,16562.0,16561.0,1.16185419]
[1672531607508,0.06314889,16562.0,16561.0,1.36978273]
[1672531608277,0.00614889,16562.0,16561.0,1.36278273]
[1672531608621,0.00614889,16562.0,16561.0,1.68471765]
[1672531608622,0.04514889,16562.0,16561.0,1.68471765]
[1672531608773,0.00614889,16562.0,16561.0,1.68271765]
[1672531609026,0.057,16562.0,16561.0,1.69019186]
[1672531609265,0.0655,16562.0,16561.0,1.36278273]
[1672531609509,0.0085,16562.0,16561.0,1.36478273]
[1672531609751,0.039,16562.0,16561.0,1.36278273]
[1672531609989,0.1045,16562.0,16561.0,1.36978273]
[1672531610226,0.0085,16562.0,16561.0,1.36278273]
[1672531610720,0.0085,16563.0,16561.0,1.36278273]
[1672531611212,0.039,16562.0,16561.0,1.36478273]
[1672531611471,0.0085,16562.0,16561.0,1.36278273]
[1672531611712,0.0655,16562.0,16561.0,1.36978273]
[1672531611957,0.0085,16562.0,16561.0,1.36278273]
[1672531612200,0.0655,16563.0,16561.0,1.36978273]
[1672531612534,0.0085,16563.0,16561.0,1.68285329]
[1672531612787,0.039,16562.0,16561.0,1.36478273]
[1672531613037,0.0085,16562.0,16561.0,0.70006104]
[1672531613278,0.0085,16562.0,16561.0,0.70706104]
[1672531614020,0.0085,16562.0,16561.0,0.70006104]
[1672531614264,0.0475,16562.0,16561.0,0.70206104]
[1672531615476,0.039,16562.0,16561.0,0.70206104]
[1672531616006,0.039,16562.0,16561.0,0.00206104]
[1672531616526,0.039,16562.0,16561.0,0.702]
[1672531618565,0.039,16562.0,16561.0,0.70212193]
[1672531622713,0.039,16562.0,16561.0,0.00212193]
[1672531622972,0.039,16562.0,16561.0,1.04286192]
[1672531623208,0.039,16562.0,16561.0,2.36227992]
[1672531623936,0.039,16562.0,16561.0,2.04235347]
[1672531624185,0.039,16562.0,16561.0,1.30845971]
[1672531629807,0.039,16562.0,16561.0,1.30838302]